bitfinex/quotes_BTCUSD_20250607
["timestamp","ask_amount","ask_price","bid_price","bid_amount"]
[1749263768528,4.89053022,104550.0,104540.0,0.32742105]
[1749263768876,4.89725196,104550.0,104540.0,0.32742105]
[1749263769074,4.89053019,104550.0,104540.0,0.32742105]
[1749263769277,4.89725192,104550.0,104540.0,0.32742105]
[1749263769487,4.89725148,104550.0,104540.0,0.32742105]
[1749263770109,4.90681591,104550.0,104540.0,0.32742105]
[1749263770299,4.90681579,104550.0,104540.0,0.32742105]
[1749263770531,4.90009403,104550.0,104540.0,0.32742105]
[1749263770731,4.92465864,104550.0,104540.0,0.31785607]
[1749263770939,4.93791565,104550.0,104540.0,0.31785607]
[1749263771144,4.94748026,104550.0,104540.0,0.31785607]
[1749263771573,4.94748021,104550.0,104540.0,0.32742123]
[1749263771777,4.94748022,104550.0,104540.0,0.32742123]
[1749263771986,4.92283423,104550.0,104540.0,0.32742123]
[1749263772192,4.88889125,104550.0,104540.0,0.32742059]
[1749263772397,4.88216962,104550.0,104540.0,0.32742059]
[1749263772601,4.90681567,104550.0,104540.0,0.32742059]
[1749263773422,4.90681566,104550.0,104540.0,0.31785552]
[1749263773595,4.9068156,104550.0,104540.0,0.31785552]
[1749263773823,4.89845585,104550.0,104540.0,0.31785552]
[1749263774028,4.90965857,104550.0,104540.0,0.31785552]
[1749263774524,4.90681558,104550.0,104540.0,0.31785552]
[1749263774701,4.91638019,104550.0,104540.0,0.31785552]
[1749263775103,4.91638017,104550.0,104540.0,0.56597552]
[1749263775316,4.89845585,104550.0,104540.0,0.56597552]
[1749263775507,4.88889124,104550.0,104540.0,0.57554059]
[1749263775713,4.91638008,104550.0,104540.0,0.56597552]
[1749263776442,4.91637546,104550.0,104540.0,0.56597552]
[1749263776641,4.91637505,104550.0,104540.0,0.56597552]
[1749263776874,4.91637396,104550.0,104540.0,0.56597552]
[1749263777149,4.89173414,104550.0,104540.0,0.56597552]
[1749263777593,4.91637437,104550.0,104540.0,0.56597552]
[1749263778130,4.8984542,104550.0,104540.0,0.56597552]
[1749263778279,4.91637425,104550.0,104540.0,0.56597552]
[1749263778483,4.91637425,104550.0,104540.0,0.57554059]
[1749263778695,4.90965423,104550.0,104540.0,0.57554059]
[1749263778844,4.89845416,104550.0,104540.0,0.56597552]
[1749263779046,4.91637423,104550.0,104540.0,0.57554059]
[1749263779505,4.91637423,104550.0,104540.0,0.56597552]
[1749263779806,4.91637423,104550.0,104540.0,0.55641036]
[1749263780013,4.91637423,104550.0,104540.0,0.56597552]
[1749263780208,4.90965418,104550.0,104540.0,0.56597552]
[1749263780408,4.89173414,104550.0,104540.0,0.56597552]
[1749263780610,4.91637421,104550.0,104540.0,0.56597552]
[1749263780811,4.91637311,104550.0,104540.0,0.56597552]
[1749263781151,4.91637311,104550.0,104540.0,0.55641036]
[1749263781389,4.91637311,104550.0,104540.0,0.56597552]
[1749263781593,4.9163707,104550.0,104540.0,0.57554059]
[1749263781832,4.91637087,104550.0,104540.0,0.56597552]
[1749263782013,4.91637056,104550.0,104540.0,0.57554059]
[1749263782427,4.91637056,104550.0,104540.0,0.56597552]
[1749263783057,4.89845311,104550.0,104540.0,0.56597552]
[1749263783228,4.90965231,104550.0,104540.0,0.56597552]
[1749263783430,4.90680711,104550.0,104540.0,0.56597552]
[1749263783629,4.90008834,104550.0,104540.0,0.56597552]
[1749263783910,4.90679899,104550.0,104540.0,0.56597552]
[1749263784246,4.9163637,104550.0,104540.0,0.55641036]
[1749263784710,4.9321637,104550.0,104540.0,0.55641036]
[1749263785012,4.93216384,104550.0,104540.0,0.55641036]
[1749263785252,4.9254471,104550.0,104540.0,0.55641036]
[1749263785465,4.92544736,104550.0,104540.0,0.55641036]
[1749263785679,4.32998344,104550.0,104540.0,0.65280984]
[1749263785904,0.39826826,104550.0,104540.0,0.69357491]
[1749263786141,0.003,104550.0,104540.0,1.24793394]
[1749263787014,0.001,104550.0,104540.0,1.24793394]
[1749263787453,0.001,104550.0,104540.0,1.25093394]
[1749263787901,0.34,104560.0,104550.0,0.25178933]
[1749263788122,0.34,104560.0,104550.0,0.63822881]
[1749263788574,0.01720361,104570.0,104560.0,0.25176828]
[1749263788790,0.01725162,104570.0,104560.0,0.43640776]
[1749263789035,0.34004801,104570.0,104560.0,0.43640776]
[1749263789963,0.34004801,104570.0,104560.0,0.43740776]
[1749263793551,0.35697467,104570.0,104560.0,0.43740776]
[1749263794475,4.801e-05,104570.0,104560.0,0.99176679]
[1749263794688,4.801e-05,104570.0,104560.0,1.54612582]
[1749263795538,4.801e-05,104570.0,104560.0,1.54512582]
[1749263795961,4.801e-05,104570.0,104560.0,1.55412582]
[1749263796176,4.801e-05,104570.0,104560.0,1.57143973]
[1749263798192,4.801e-05,104570.0,104560.0,2.12579876]
[1749263799092,4.801e-05,104570.0,104560.0,1.57143973]
[1749263799365,4.801e-05,104570.0,104560.0,2.12579876]
[1749263799597,4.801e-05,104570.0,104560.0,2.58033961]
[1749263799823,0.61473267,104620.0,104610.0,0.21986315]
[1749263800043,0.61521318,104620.0,104610.0,0.94246263]
[1749263800729,0.95521318,104620.0,104610.0,0.94246263]
[1749263801394,0.40085415,104620.0,104610.0,0.94246263]
[1749263801610,0.41041218,104620.0,104610.0,0.94246263]
[1749263802070,0.40085397,104620.0,104610.0,0.94246263]
[1749263802295,0.40085397,104620.0,104610.0,0.94546263]
[1749263802521,0.41041209,104620.0,104610.0,0.94546263]
[1749263802753,0.38535397,104620.0,104610.0,0.94546263]
[1749263802988,0.34048051,104620.0,104610.0,0.94546263]
[1749263803252,0.35003808,104620.0,104610.0,0.94546263]
[1749263803475,0.34048051,104620.0,104610.0,0.97374796]
[1749263803702,0.00048051,104620.0,104610.0,1.5575186]
[1749263806388,0.00048051,104620.0,104610.0,0.62628796]
[1749263806596,0.00048051,104620.0,104610.0,0.97370796]
[1749263806597,0.60496639,104620.0,104610.0,0.97370796]
[1749263806827,0.61452433,104620.0,104610.0,0.97370796]
[1749263807527,0.61452424,104620.0,104610.0,0.97370796]
[1749263808159,0.0614536,104620.0,104610.0,0.97370796]
[1749263808982,0.05189575,104620.0,104610.0,0.97370796]
[1749263809210,0.0614536,104620.0,104610.0,0.97370796]
[1749263809615,0.05189575,104620.0,104610.0,0.97370796]
[1749263809829,0.06145351,104620.0,104610.0,0.97370796]
[1749263810039,0.06145351,104620.0,104610.0,0.94542263]
[1749263810249,0.05189575,104620.0,104610.0,0.94542263]
[1749263810464,0.0614536,104620.0,104610.0,0.94542263]
[1749263810674,0.07101154,104620.0,104610.0,0.94542263]
[1749263813036,0.08056957,104620.0,104610.0,0.94542263]
[1749263813455,0.07101154,104620.0,104610.0,0.94542263]
[1749263813879,0.08056966,104620.0,104610.0,0.94542263]
[1749263814092,0.07101154,104620.0,104610.0,0.94542263]
[1749263814942,0.08056957,104620.0,104610.0,0.94542263]
[1749263815348,0.06145397,104620.0,104610.0,0.94542263]
[1749263815555,0.07101209,104620.0,104610.0,0.94542263]
[1749263815774,0.071012,104620.0,104610.0,0.94542263]
[1749263816827,0.08057021,104620.0,104610.0,0.94542263]
[1749263817038,0.071012,104620.0,104610.0,0.94542263]
[1749263817246,0.80321373,104620.0,104610.0,0.73503879]
[1749263817467,4.75298109,104620.0,104610.0,0.93578423]
[1749263817674,4.74343775,104620.0,104610.0,0.63871931]
[1749263818589,4.72561942,104620.0,104610.0,0.63871931]
[1749263818815,4.73387937,104620.0,104610.0,0.82990562]
[1749263819268,4.73388773,104620.0,104610.0,0.83946484]
[1749263819495,4.73388773,104620.0,104610.0,0.84902388]
[1749263820161,4.7160613,104620.0,104610.0,0.84902388]
[1749263820393,0.28118217,104620.0,104610.0,0.85858273]
[1749263820611,0.28118219,104620.0,104610.0,0.85858273]
[1749263820847,0.2811966,104620.0,104610.0,0.85858273]
[1749263821351,0.28126615,104620.0,104610.0,0.85858273]
[1749263821855,0.28127041,104620.0,104610.0,0.86814149]
[1749263822078,0.28127041,104620.0,104610.0,0.85858273]
[1749263823443,0.28129804,104620.0,104610.0,0.85858273]
[1749263823700,0.30984208,104620.0,104610.0,0.86814149]
[1749263823919,0.30984213,104620.0,104610.0,0.86814149]
[1749263824758,0.30984213,104620.0,104610.0,0.85858273]
[1749263824977,0.29196442,104620.0,104610.0,0.85858273]
[1749263825187,0.30984213,104620.0,104610.0,0.85858273]
[1749263825593,0.30984201,104620.0,104610.0,0.85858273]
[1749263825800,0.29196442,104620.0,104610.0,0.85858273]
[1749263826009,0.30986414,104620.0,104610.0,0.85858273]
[1749263826216,0.30986539,104620.0,104610.0,0.85858273]
[1749263826434,0.30986539,104620.0,104610.0,0.86814149]
[1749263826639,0.29196442,104620.0,104610.0,0.85858283]
[1749263826850,0.30986543,104620.0,104610.0,0.86814168]
[1749263827062,0.86293607,104620.0,104610.0,0.86814168]
[1749263827585,0.86293612,104620.0,104610.0,0.84902388]
[1749263827824,0.70995886,104620.0,104610.0,0.86814168]
[1749263828309,0.6920578,104620.0,104610.0,0.86814168]
[1749263828768,0.88322583,104620.0,104610.0,0.54954484]
[1749263828976,0.90112789,104620.0,104610.0,0.84898397]
[1749263829190,0.90112789,104620.0,104610.0,0.85854301]
[1749263829416,0.90112789,104620.0,104610.0,0.86810196]
[1749263829649,0.90112789,104620.0,104610.0,0.85854301]
[1749263830165,0.89156977,104620.0,104610.0,0.84898397]
[1749263830639,0.89157142,104620.0,104610.0,0.84898397]
[1749263831614,0.89157195,104620.0,104610.0,0.85854301]
[1749263833003,0.8915708,104620.0,104610.0,0.85854301]
[1749263833442,0.8915708,104620.0,104610.0,0.76078397]
[1749263833668,5.10937956,104620.0,104610.0,0.25104]
[1749263833887,5.17449243,104620.0,104610.0,0.62916]
[1749263834119,5.18120567,104620.0,104610.0,0.62916]
[1749263834533,5.1430149,104620.0,104610.0,0.62916]
[1749263834741,5.14301499,104620.0,104610.0,0.62916]
[1749263834954,5.14301506,104620.0,104610.0,0.62916]
[1749263835159,5.14301548,104620.0,104610.0,0.62916]
[1749263835411,5.12511291,104620.0,104610.0,0.62916]
[1749263835619,1.23381748,104620.0,104610.0,0.62816]
[1749263835846,5.14301548,104620.0,104610.0,0.62816]
[1749263836335,5.14301548,104620.0,104610.0,0.25004]
[1749263836583,5.14301502,104620.0,104610.0,0.62812]
[1749263836805,5.14713345,104620.0,104610.0,0.62812]
[1749263837044,5.17174858,104620.0,104610.0,0.62612]
[1749263837274,5.17174857,104620.0,104610.0,0.62612]
[1749263837501,5.17274857,104620.0,104610.0,0.62612]
[1749263837771,4.65786074,104620.0,104610.0,0.62612]
[1749263837982,5.21093138,104620.0,104610.0,0.62612]
[1749263838234,5.20421097,104620.0,104610.0,0.62612]
[1749263838483,5.21092148,104620.0,104610.0,0.62612]
[1749263839650,5.21091784,104620.0,104610.0,0.62612]
[1749263839860,5.19302578,104620.0,104610.0,0.62612]
[1749263840073,5.21091784,104620.0,104610.0,0.62612]
[1749263840254,5.21091785,104620.0,104610.0,0.62612]
[1749263840693,5.13573963,104620.0,104610.0,0.62612]
[1749263840902,5.15363169,104620.0,104610.0,0.62612]
[1749263841316,5.15362895,104620.0,104610.0,0.62612]
[1749263841524,5.12903011,104620.0,104610.0,0.62612]
[1749263841772,5.17555033,104620.0,104610.0,0.62612]
[1749263841982,1.25517061,104620.0,104610.0,0.62612]
[1749263842198,5.18225936,104620.0,104610.0,0.62612]
[1749263843517,5.17555033,104620.0,104610.0,0.62612]
[1749263843944,5.18225936,104620.0,104610.0,0.62612]
[1749263844161,5.18225889,104620.0,104610.0,0.62612]
[1749263844577,5.18225935,104620.0,104610.0,0.62612]
[1749263844784,5.14407654,104620.0,104610.0,0.62612]
[1749263844960,5.14407682,104620.0,104610.0,0.62612]
[1749263845469,5.11947677,104620.0,104610.0,0.62612]
[1749263845718,5.14407682,104620.0,104610.0,0.62612]
[1749263846050,5.13736772,104620.0,104610.0,0.62612]
[1749263846228,5.14407787,104620.0,104610.0,0.62612]
[1749263846545,5.14408065,104620.0,104610.0,0.62612]
[1749263846968,5.13737048,104620.0,104610.0,0.62612]
[1749263847123,5.14408062,104620.0,104610.0,0.62612]
[1749263847339,5.1261869,104620.0,104610.0,0.62612]
[1749263847683,5.1440806,104620.0,104610.0,0.62612]
[1749263848355,5.13737038,104620.0,104610.0,0.62612]
[1749263848569,5.14408048,104620.0,104610.0,0.62612]
[1749263848789,5.14408051,104620.0,104610.0,0.62612]
[1749263849697,5.12618688,104620.0,104610.0,0.62612]
[1749263849921,5.13736952,104620.0,104610.0,0.62612]
[1749263850139,5.14407932,104620.0,104610.0,0.62612]
[1749263850602,5.11947677,104620.0,104610.0,0.62612]
[1749263850829,5.12618655,104620.0,104610.0,0.62612]
[1749263851045,5.14407932,104620.0,104610.0,0.62612]
[1749263851275,1.23488132,104620.0,104610.0,0.62612]
[1749263851492,5.14408093,104620.0,104610.0,0.62612]
[1749263851717,5.13737071,104620.0,104610.0,0.62612]
[1749263851985,5.12618699,104620.0,104610.0,0.62612]
[1749263852205,5.14408077,104620.0,104610.0,0.62612]
[1749263852439,5.13736815,104620.0,104610.0,0.62612]
[1749263852664,5.13736569,104620.0,104610.0,0.62612]
[1749263852880,5.14407381,104620.0,104610.0,0.62612]
[1749263853557,5.14407322,104620.0,104610.0,0.62612]
[1749263853775,5.13736514,104620.0,104610.0,0.62612]
[1749263853996,5.11947677,104620.0,104610.0,0.62612]
[1749263854210,5.14407372,104620.0,104610.0,0.62612]
[1749263854864,5.14407425,104620.0,104610.0,0.62612]
[1749263855300,5.11947677,104620.0,104610.0,0.62612]
[1749263855520,5.13736706,104620.0,104610.0,0.62612]
[1749263855749,5.14407592,104620.0,104610.0,0.62612]
[1749263856208,4.59100528,104620.0,104610.0,0.62612]
[1749263856441,5.14407694,104620.0,104610.0,0.62612]
[1749263856932,5.12618665,104620.0,104610.0,0.62612]
[1749263857180,5.13736979,104620.0,104610.0,0.62612]
[1749263857425,5.11947677,104620.0,104610.0,0.62612]
[1749263857632,5.18226248,104620.0,104610.0,0.62612]
[1749263858537,5.18226428,104620.0,104610.0,0.62612]
[1749263858760,5.18226909,104620.0,104610.0,0.62612]
[1749263858980,5.11290652,104620.0,104610.0,0.62612]
[1749263859210,5.18235255,104620.0,104610.0,0.62612]
[1749263859897,5.18235516,104620.0,104610.0,0.62612]
[1749263860115,5.18236212,104620.0,104610.0,0.62612]
[1749263860766,5.17564783,104620.0,104610.0,0.62612]
[1749263860985,5.18236212,104620.0,104610.0,0.62612]
[1749263861857,5.16446359,104620.0,104610.0,0.62612]
[1749263862075,5.211213,104620.0,104610.0,0.62612]
[1749263862298,5.19329154,104620.0,104610.0,0.62612]
[1749263862547,5.211213,104620.0,104610.0,0.62612]
[1749263863431,5.76471848,104620.0,104610.0,0.62612]
[1749263863650,1.80896113,104620.0,104610.0,0.62612]
[1749263863882,1.82688259,104620.0,104610.0,0.62612]
[1749263864128,5.73608059,104620.0,104610.0,0.62612]
[1749263864820,5.73608295,104620.0,104610.0,0.62612]
[1749263865038,5.71815913,104620.0,104610.0,0.62612]
[1749263865259,5.71816001,104620.0,104610.0,0.62612]
[1749263865480,5.7293624,104620.0,104610.0,0.62612]
[1749263865710,5.71816001,104620.0,104610.0,0.62612]
[1749263865940,5.73608383,104620.0,104610.0,0.62612]
[1749263866562,5.73608393,104620.0,104610.0,0.62612]
[1749263867485,5.71816004,104620.0,104610.0,0.62612]
[1749263867709,1.82688789,104620.0,104610.0,0.62612]
[1749263867956,5.73608588,104620.0,104610.0,0.62612]
[1749263868442,5.73608604,104620.0,104610.0,0.62612]
[1749263868675,1.80896246,104620.0,104610.0,0.62612]
[1749263868940,5.71143858,104620.0,104610.0,0.62612]
[1749263869192,5.71816063,104620.0,104610.0,0.62612]
[1749263869445,5.71143858,104620.0,104610.0,0.62612]
[1749263869716,1.8268881,104620.0,104610.0,0.62612]
[1749263869959,5.7360861,104620.0,104610.0,0.62612]
[1749263870201,5.71816063,104620.0,104610.0,0.62612]
[1749263870448,5.7360861,104620.0,104610.0,0.62612]
[1749263870687,5.72936405,104620.0,104610.0,0.62612]
[1749263870914,5.7360861,104620.0,104610.0,0.62612]
[1749263871135,5.73608614,104620.0,104610.0,0.62612]
[1749263871803,5.70578565,104620.0,104610.0,0.65782]
[1749263872256,5.70578574,104620.0,104610.0,0.64212]
[1749263872714,5.70578574,104620.0,104610.0,0.62612]
[1749263873402,5.70578527,104620.0,104610.0,0.62612]
[1749263873676,5.70578509,104620.0,104610.0,0.62612]
[1749263873904,5.68785999,104620.0,104610.0,0.62612]
[1749263874129,5.69906319,104620.0,104610.0,0.62612]
[1749263874376,0.08679924,104620.0,104610.0,0.87708315]
[1749263874622,0.36848279,104620.0,104610.0,0.87708315]
[1749263874862,0.38758026,104620.0,104610.0,0.87708315]
[1749263875125,0.93131029,104620.0,104610.0,0.87708315]
[1749263875364,0.3818171,104620.0,104610.0,1.05023965]
[1749263875612,0.01890769,104620.0,104610.0,1.05023965]
[1749263875835,0.02846518,104620.0,104610.0,1.05023965]
[1749263876067,0.01890759,104620.0,104610.0,0.97348263]
[1749263876296,0.02846526,104620.0,104610.0,0.97348263]
[1749263876762,0.02846513,104620.0,104610.0,0.97348263]
[1749263876995,0.01055757,104620.0,104610.0,0.97348263]
[1749263877237,0.02846515,104620.0,104610.0,0.97348263]
[1749263877693,0.01055757,104620.0,104610.0,0.97348263]
[1749263881063,0.001,104620.0,104610.0,0.97348263]
[1749263881293,0.01055757,104620.0,104610.0,0.97348263]
[1749263883217,0.001,104620.0,104610.0,1.52654192]
[1749263884107,0.2268998,104630.0,104620.0,0.25134213]
[1749263884325,0.22703757,104630.0,104620.0,0.34774161]
[1749263885463,0.22703757,104630.0,104620.0,0.34526161]
[1749263885676,0.22703757,104630.0,104620.0,0.34726161]
[1749263886334,0.20940473,104630.0,104620.0,0.34726161]
[1749263886598,0.00969443,104630.0,104620.0,0.34726161]
[1749263886823,0.00013777,104630.0,104620.0,0.34926161]
[1749263889480,0.00013777,104630.0,104620.0,0.9023209]
[1749263894495,0.00013777,104630.0,104620.0,0.34926161]
[1749263894717,0.00013777,104630.0,104620.0,0.72902161]
[1749263895411,0.00969443,104630.0,104620.0,0.72898161]
[1749263895628,0.00013777,104630.0,104620.0,0.72898161]
[1749263900739,0.00969452,104630.0,104620.0,0.34926161]
[1749263900956,0.00013777,104630.0,104620.0,0.69736161]
[1749263901394,0.00013777,104630.0,104620.0,0.73026161]
[1749263901634,0.00969443,104630.0,104620.0,0.73026161]
[1749263902586,0.00013777,104630.0,104620.0,0.73026161]
[1749263904140,0.00969443,104630.0,104620.0,0.73026161]
[1749263904596,0.00013777,104630.0,104620.0,0.73026161]
[1749263906875,0.00013777,104630.0,104620.0,1.00570161]
[1749263916368,0.00013777,104630.0,104620.0,1.25358161]
[1749263921314,0.00013777,104630.0,104620.0,1.80645066]
[1749263922060,0.00013777,104630.0,104620.0,1.77355066]
[1749263922291,0.00013777,104630.0,104620.0,1.22068161]
[1749263923684,0.00013777,104630.0,104620.0,1.23618161]
[1749263923892,0.00013777,104630.0,104620.0,1.80505066]
[1749263929510,0.00013777,104630.0,104620.0,2.35791971]
[1749263930165,0.00013777,104630.0,104620.0,1.80505066]
[1749263944278,0.00013777,104630.0,104620.0,2.35791971]
[1749263945142,0.00013777,104630.0,104620.0,1.80505066]
[1749263945775,0.00013777,104630.0,104620.0,2.35791971]
[1749263951267,0.02900002,104640.0,104630.0,0.21982111]
[1749263951505,0.05960002,104640.0,104630.0,0.95768964]
[1749263953449,0.05960002,104640.0,104630.0,0.40582059]
[1749263953675,0.05960002,104640.0,104630.0,0.95868964]
[1749263956474,0.05960002,104640.0,104630.0,1.20656964]
[1749263956955,0.05960002,104640.0,104630.0,0.65370059]
[1749263961241,0.05960002,104640.0,104630.0,0.92910059]
[1749263961481,0.05960002,104640.0,104630.0,1.21946059]
[1749263965431,0.04450002,104640.0,104630.0,1.21946059]
[1749263967046,0.06070002,104640.0,104630.0,1.21946059]
[1749263968882,0.02900002,104640.0,104630.0,0.84050059]
[1749263969100,0.06100002,104640.0,104630.0,1.21986059]
[1749263974449,0.04480002,104640.0,104630.0,1.21986059]
[1749263977412,0.02900002,104640.0,104630.0,1.21986059]
[1749263978587,0.04460002,104640.0,104630.0,1.21986059]
[1749263979201,0.06040002,104640.0,104630.0,1.21986059]
[1749263987416,0.61326907,104640.0,104630.0,1.21962059]
[1749263987633,0.63119425,104640.0,104630.0,1.21962059]
[1749263987839,0.06040002,104640.0,104630.0,1.21962059]
[1749263988051,0.07832522,104640.0,104630.0,1.21962059]
[1749263988806,0.63119427,104640.0,104630.0,1.21962059]
[1749263989223,0.61326907,104640.0,104630.0,1.21962059]
[1749263989433,0.63119427,104640.0,104630.0,1.21962059]
[1749263990090,0.61326907,104640.0,104630.0,1.21962059]
[1749263990527,0.61326907,104640.0,104630.0,0.62067948]
[1749263990528,1.72593822,104640.0,104630.0,0.62067948]
[1749263990752,5.32643468,104640.0,104630.0,1.09482976]
[1749263990971,5.34271397,104640.0,104630.0,1.09482976]
[1749263991183,5.32479137,104640.0,104630.0,1.09482976]
[1749263991405,5.3180704,104640.0,104630.0,1.09482976]
[1749263991634,5.33315805,104640.0,104630.0,0.90368]
[1749263991861,5.31523535,104640.0,104630.0,0.90368]
[1749263992076,5.31523524,104640.0,104630.0,1.09482976]
[1749263992293,5.33315803,104640.0,104630.0,1.09482976]
[1749263992737,5.32643699,104640.0,104630.0,1.09482976]
[1749263992959,5.32643699,104640.0,104630.0,1.10438706]
[1749263993187,5.3085142,104640.0,104630.0,1.10438715]
[1749263993403,5.33315795,104640.0,104630.0,1.11394445]
[1749263993625,5.31523543,104640.0,104630.0,0.72498724]
[1749263993813,5.31523543,104640.0,104630.0,1.09494976]
[1749263993814,5.32643747,104640.0,104630.0,1.09494976]
[1749263994064,5.32643748,104640.0,104630.0,1.10450715]
[1749263994501,5.32643758,104640.0,104630.0,1.11406445]
[1749263994712,5.3085142,104640.0,104630.0,1.11406445]
[1749263994928,5.3264376,104640.0,104630.0,1.11406445]
[1749263995140,5.33315886,104640.0,104630.0,1.11406445]
[1749263995351,5.33315829,104640.0,104630.0,1.11406445]
[1749263995776,5.33312911,104640.0,104630.0,1.11406445]
[1749263995996,5.33312911,104640.0,104630.0,0.52428]
[1749263996219,5.3085142,104640.0,104630.0,0.90372]
[1749263996437,5.32640802,104640.0,104630.0,1.10442724]
[1749263996655,5.33311821,104640.0,104630.0,1.09482976]
[1749263996865,5.32640803,104640.0,104630.0,1.11394463]
[1749263997078,5.31522438,104640.0,104630.0,1.11394463]
[1749263997338,5.33311821,104640.0,104630.0,1.11394463]
[1749263997989,5.32639857,104640.0,104630.0,1.11394463]
[1749263998204,5.3085142,104640.0,104630.0,1.11394463]
[1749263998630,5.32639857,104640.0,104630.0,1.10438724]
[1749263998844,5.32639659,104640.0,104630.0,1.10438724]
[1749263999299,5.31684011,104640.0,104630.0,0.90368]
[1749263999512,5.31684011,104640.0,104630.0,1.09482976]
[1749263999961,5.29895772,104640.0,104630.0,1.10438724]
[1749264000413,5.29895772,104640.0,104630.0,1.09482976]
[1749264000594,5.31684011,104640.0,104630.0,1.09482976]
[1749264001545,5.29895772,104640.0,104630.0,1.09482976]
[1749264001766,5.31684011,104640.0,104630.0,1.09482976]
[1749264001982,5.30728354,104640.0,104630.0,0.61284]
[1749264002211,5.30728124,104640.0,104630.0,0.90332]
[1749264002476,5.69725228,104640.0,104630.0,0.90332]
[1749264002918,5.69724794,104640.0,104630.0,0.90332]
[1749264003174,5.6972484,104640.0,104630.0,0.90332]
[1749264004019,5.6972477,104640.0,104630.0,0.90332]
[1749264004448,5.69054493,104640.0,104630.0,0.90332]
[1749264004888,5.69054493,104640.0,104630.0,0.52428]
[1749264005156,5.672669,104640.0,104630.0,0.61284]
[1749264005372,6.26091818,104640.0,104630.0,0.90332]
[1749264005596,6.26091854,104640.0,104630.0,0.90332]
[1749264005839,5.72591985,104640.0,104630.0,0.90332]
[1749264006020,5.72591984,104640.0,104630.0,0.90332]
[1749264006452,5.72591984,104640.0,104630.0,0.24788]
[1749264006725,5.72691984,104640.0,104630.0,0.62712]
[1749264006941,5.72021069,104640.0,104630.0,0.62712]
[1749264007164,5.72690924,104640.0,104630.0,0.62712]
[1749264007404,5.70134789,104640.0,104630.0,0.62712]
[1749264007647,5.72890912,104640.0,104630.0,0.62712]
[1749264008315,5.72890976,104640.0,104630.0,0.62712]
[1749264008752,5.70434789,104640.0,104630.0,0.62712]
[1749264008984,5.72891144,104640.0,104630.0,0.62712]
[1749264009651,5.72890915,104640.0,104630.0,0.62712]
[1749264010289,5.7289083,104640.0,104630.0,0.62712]
[1749264010737,5.72221001,104640.0,104630.0,0.62712]
[1749264010959,5.71104618,104640.0,104630.0,0.62712]
[1749264011201,5.7289083,104640.0,104630.0,0.62712]
[1749264011412,6.28177727,104640.0,104630.0,0.62708]
[1749264011664,6.28177713,104640.0,104630.0,0.62708]
[1749264011873,6.28177714,104640.0,104630.0,0.62708]
[1749264012089,6.28177717,104640.0,104630.0,0.62708]
[1749264012305,6.25721694,104640.0,104630.0,0.62708]
[1749264012527,6.26391518,104640.0,104630.0,0.62708]
[1749264012747,6.28177717,104640.0,104630.0,0.62708]
[1749264013404,6.28177944,104640.0,104630.0,0.62708]
[1749264013856,6.27508497,104640.0,104630.0,0.62708]
[1749264014088,6.28178548,104640.0,104630.0,0.62708]
[1749264014320,6.37818496,104640.0,104630.0,0.33648]
[1749264014546,6.41636808,104640.0,104630.0,0.62712]
[1749264014774,6.41622776,104640.0,104630.0,0.62712]
[1749264014995,6.41622795,104640.0,104630.0,0.62712]
[1749264015420,6.41622857,104640.0,104630.0,0.62712]
[1749264015647,6.39165918,104640.0,104630.0,0.62712]
[1749264016299,6.41622848,104640.0,104630.0,0.62712]
[1749264016510,6.41622849,104640.0,104630.0,0.62712]
[1749264016938,6.4162325,104640.0,104630.0,0.62712]
[1749264017120,6.43119057,104640.0,104630.0,0.62712]
[1749264017326,6.43060126,104640.0,104630.0,0.62712]
[1749264017539,6.43060128,104640.0,104630.0,0.62712]
[1749264017769,6.39530093,104640.0,104630.0,0.62712]
[1749264017979,6.38412638,104640.0,104630.0,0.62712]
[1749264018182,6.40200572,104640.0,104630.0,0.62712]
[1749264019378,6.38412638,104640.0,104630.0,0.62712]
[1749264019561,6.44141253,104640.0,104630.0,0.62712]
[1749264019888,6.45929187,104640.0,104630.0,0.62712]
[1749264020697,4.80070141,104640.0,104630.0,0.62712]
[1749264020895,6.43470778,104640.0,104630.0,0.62712]
[1749264021099,6.44141877,104640.0,104630.0,0.62712]
[1749264021301,6.3841326,104640.0,104630.0,0.62752]
[1749264021495,6.37742163,104640.0,104630.0,0.62752]
[1749264021699,6.4020285,104640.0,104630.0,0.62752]
[1749264022518,2.55011655,104640.0,104630.0,0.6276]
[1749264022697,6.43470778,104640.0,104630.0,0.6276]
[1749264023068,6.45931427,104640.0,104630.0,0.6276]
[1749264023279,6.45260341,104640.0,104630.0,0.6276]
[1749264023484,6.45931428,104640.0,104630.0,0.6276]
[1749264024239,6.45931425,104640.0,104630.0,0.6276]
[1749264024459,6.43470778,104640.0,104630.0,0.6276]
[1749264024673,6.44141863,104640.0,104630.0,0.6276]
[1749264024898,6.45931424,104640.0,104630.0,0.6276]
[1749264025342,6.45931436,104640.0,104630.0,0.6276]
[1749264026239,6.4593181,104640.0,104630.0,0.6276]
[1749264026453,6.45931813,104640.0,104630.0,0.6276]
[1749264026666,6.43470778,104640.0,104630.0,0.6276]
[1749264026946,6.44141969,104640.0,104630.0,0.6276]
[1749264027137,6.45931811,104640.0,104630.0,0.6276]
[1749264028136,6.44142167,104640.0,104630.0,0.6276]
[1749264028335,6.45932538,104640.0,104630.0,0.6276]
[1749264028680,2.55012738,104640.0,104630.0,0.6276]
[1749264028861,6.45932538,104640.0,104630.0,0.6276]
[1749264029447,6.44142166,104640.0,104630.0,0.6276]
[1749264029636,6.45932536,104640.0,104630.0,0.6276]
[1749264029818,6.43470778,104640.0,104630.0,0.37972]
[1749264030016,6.44142169,104640.0,104630.0,0.37972]
[1749264030254,6.45932545,104640.0,104630.0,0.37972]
[1749264030632,6.43470778,104640.0,104630.0,0.37972]
[1749264030817,6.4593263,104640.0,104630.0,0.37972]
[1749264031231,6.43470778,104640.0,104630.0,0.37972]
[1749264031446,6.4593263,104640.0,104630.0,0.37972]
[1749264031857,6.45261216,104640.0,104630.0,0.37972]
[1749264032095,6.43470778,104640.0,104630.0,0.37972]
[1749264032298,6.4593263,104640.0,104630.0,0.37972]
[1749264032721,6.45933588,104640.0,104630.0,0.37972]
[1749264032938,6.42115288,104640.0,104630.0,0.37972]
[1749264033177,6.3965247,104640.0,104630.0,0.37972]
[1749264033406,6.42115294,104640.0,104630.0,0.37972]
[1749264033622,6.40324149,104640.0,104630.0,0.37972]
[1749264033832,6.42115294,104640.0,104630.0,0.37972]
[1749264034498,6.42115587,104640.0,104630.0,0.37972]
[1749264034712,6.40324442,104640.0,104630.0,0.37972]
[1749264034933,6.42116368,104640.0,104630.0,0.37972]
[1749264035594,4.13402303,104620.0,104610.0,0.24796]
[1749264035819,5.2872766,104620.0,104610.0,0.33685777]
[1749264036044,5.2872766,104620.0,104610.0,0.41361479]
[1749264036291,5.31600967,104620.0,104610.0,0.41361479]